bitfinex/quotes_ETHUSD_20251201
["timestamp","ask_amount","ask_price","bid_price","bid_amount"]
[1764602482577,1.13109811,2792.6,2791.4,3.58243175]
[1764602482732,1.13109811,2792.6,2791.4,7.1648635]
[1764602482938,0.72559411,2792.6,2791.4,10.74729525]
[1764602483179,0.245,2792.7,2791.4,14.329727]
[1764602483447,0.245,2792.7,2790.4,3.58360982]
[1764602483448,0.09989793,2791.8,2790.3,0.4552]
[1764602483834,0.09989793,2791.8,2789.7,10.75384449]
[1764602483835,0.35183971,2791.5,2789.7,10.75384449]
[1764602484034,0.35183971,2791.5,2789.6,0.6881747]
[1764602484035,0.35183971,2790.4,2789.6,0.2329747]
[1764602484272,0.245,2790.3,2789.6,0.2329747]
[1764602484562,0.245,2790.3,2789.6,3.8176042]
[1764602484772,0.405504,2791.1,2789.6,7.40234753]
[1764602484972,0.35183971,2790.8,2789.7,0.1929]
[1764602485158,0.245,2790.9,2789.6,4.5178042]
[1764602485358,0.245,2790.9,2789.7,0.1929]
[1764602485537,0.405504,2790.9,2789.7,0.1929]
[1764602485739,0.245,2791.0,2789.7,0.1929]
[1764602486004,0.73353823,2791.2,2789.8,0.4552]
[1764602486268,0.92729942,2792.2,2791.2,0.001]
[1764602486455,0.09989793,2791.9,2791.2,0.001]
[1764602486856,0.245,2792.2,2791.2,0.001]
[1764602486857,3.82643761,2792.2,2791.2,0.001]
[1764602487067,0.09989793,2791.8,2791.2,0.001]
[1764602487245,0.245,2792.2,2791.2,0.001]
[1764602487571,3.82641052,2792.2,2791.2,0.001]
[1764602487775,0.09989793,2791.8,2791.2,0.001]
[1764602488564,3.58168274,2792.0,2791.2,0.001]
[1764602488766,0.09989793,2791.8,2791.2,0.001]
[1764602489156,0.35183971,2792.1,2791.2,0.001]
[1764602489359,0.245,2792.2,2791.2,0.001]
[1764602489537,0.09989793,2792.6,2791.2,0.7086]
[1764602489768,1.70536511,2792.8,2791.3,0.245]
[1764602489967,0.09989793,2792.7,2791.3,0.4548]
[1764602490266,0.97059411,2792.8,2791.3,0.4548]
[1764602490473,0.09989793,2792.5,2791.4,7.1648635]
[1764602490639,0.245,2792.8,2791.5,0.4548]
[1764602491443,3.8256404,2792.8,2791.6,0.245]
[1764602491652,0.35183971,2792.4,2791.5,0.4548]
[1764602491968,1.4757453,2792.7,2791.5,0.4548]
[1764602491969,1.4757453,2792.7,2791.6,0.1964]
[1764602492464,0.35183971,2791.9,2791.2,0.001]
[1764602492664,0.73512717,2792.3,2791.2,0.001]
[1764602492975,1.08696688,2792.4,2791.2,0.4558]
[1764602493174,0.73512717,2792.4,2791.2,0.4558]
[1764602493352,1.08696688,2792.4,2791.2,0.4558]
[1764602493778,0.73512717,2792.4,2791.2,0.4558]
[1764602493981,1.08696688,2792.4,2791.2,0.4558]
[1764602494171,2.57379499,2792.4,2791.2,0.4558]
[1764602494368,2.57379499,2792.4,2791.2,0.001]
[1764602494369,3.58127708,2792.3,2791.2,0.001]
[1764602494716,0.92729942,2792.0,2791.2,0.001]
[1764602495013,0.35183971,2791.8,2791.2,0.001]
[1764602495214,0.35183971,2791.7,2791.2,0.001]
[1764602495377,0.35183971,2791.6,2791.2,0.001]
[1764602495577,0.92729942,2791.7,2791.2,0.001]
[1764602495816,1.23639923,2791.4,2791.2,0.001]
[1764602496111,0.245,2791.6,2791.2,0.001]
[1764602496317,0.92453277,2791.9,2791.2,0.001]
[1764602496502,0.74055107,2792.0,2791.3,10.74768027]
[1764602496684,1.16953277,2791.9,2791.2,0.001]
[1764602496890,0.92453277,2791.7,2791.2,7.16635943]
[1764602497228,1.66508384,2791.6,2791.2,7.16635943]
[1764602497513,0.245,2791.9,2791.2,7.16635943]
[1764602497514,0.74055107,2791.5,2791.2,0.4558]
[1764602497696,0.92453277,2792.0,2791.3,11.20248027]
[1764602497894,1.66552597,2792.1,2791.3,12.3424683]
[1764602498080,0.92453277,2792.1,2791.3,4.72254812]
[1764602498272,0.7409932,2792.0,2791.4,0.4548]
[1764602498473,1.66552597,2792.3,2791.5,14.32921368]
[1764602498674,0.92453277,2792.9,2792.2,0.1964]
[1764602498904,0.92453277,2792.9,2792.3,0.245]
[1764602498905,0.74144568,2792.9,2792.3,0.245]
[1764602499104,0.74144568,2792.9,2792.2,0.1964]
[1764602499105,0.74144568,2792.8,2792.4,0.245]
[1764602499311,0.74144568,2792.8,2792.3,0.4548]
[1764602499476,0.245,2793.6,2792.4,0.245]
[1764602499477,0.92453277,2793.4,2792.4,0.245]
[1764602499675,1.48139923,2793.6,2792.4,0.245]
[1764602499676,0.74196735,2793.3,2792.5,0.4548]
[1764602499882,0.74196735,2793.2,2792.5,0.245]
[1764602500082,0.74196735,2793.1,2792.5,0.245]
[1764602500488,0.74196735,2793.1,2792.6,10.74267705]
[1764602500489,0.74196735,2793.0,2792.6,10.74267705]
[1764602500806,0.74196735,2793.0,2792.7,1.1442477]
[1764602500969,1.85459884,2793.7,2792.7,1.5990477]
[1764602500970,0.74291984,2793.3,2792.7,1.5990477]
[1764602501170,0.74291984,2793.4,2792.8,0.4548]
[1764602501406,1.66745261,2793.5,2792.8,0.6998]
[1764602501615,0.74291984,2793.4,2792.8,1.95847247]
[1764602501772,0.92453277,2793.6,2792.8,1.95847247]
[1764602501773,0.74291984,2793.5,2792.9,0.4548]
[1764602501978,0.74211984,2793.4,2792.9,0.4548]
[1764602502280,0.92453277,2793.3,2792.4,0.4548]
[1764602502614,0.92453277,2793.0,2792.2,0.1964]
[1764602502793,0.92453277,2792.7,2792.2,7.60420172]
[1764602502979,0.92453277,2792.7,2792.2,3.77779638]
[1764602503283,0.92453277,2792.5,2792.2,3.77778531]
[1764602503486,0.92453277,2792.4,2791.9,0.1964]
[1764602503996,0.92453277,2792.6,2792.0,0.4548]
[1764602504196,3.16578659,2793.8,2792.0,0.4548]
[1764602504197,0.92453277,2792.9,2792.0,0.4548]
[1764602504398,0.92453277,2793.0,2792.0,0.4548]
[1764602504602,0.92453277,2792.9,2792.1,14.57113444]
[1764602504907,0.92453277,2793.0,2792.2,1.50259344]
[1764602505111,0.92453277,2793.0,2792.2,1.95739344]
[1764602505417,0.92453277,2793.0,2792.3,0.6998]
[1764602505615,0.42453277,2793.3,2792.5,7.95919434]
[1764602505818,3.16578659,2794.3,2793.1,8.15559434]
[1764602505819,1.23639923,2794.3,2793.1,8.15559434]
[1764602505986,1.85459884,2794.5,2793.2,0.245]
[1764602505987,1.23639923,2794.5,2793.2,0.245]
[1764602506177,1.23639923,2794.5,2793.3,0.84005943]
[1764602506515,1.23639923,2794.5,2793.5,10.73921601]
[1764602506676,1.23639923,2794.5,2793.6,0.245]
[1764602506880,1.23639923,2794.6,2793.6,0.6998]
[1764602507111,1.23639923,2794.5,2793.7,0.245]
[1764602507315,1.23839923,2794.4,2793.7,1.1439016]
[1764602507516,0.002,2794.4,2793.7,1.5987016]
[1764602507833,0.002,2794.4,2793.8,0.4548]
[1764602507996,0.002,2794.4,2793.8,0.6998]
[1764602508312,0.002,2794.4,2793.9,0.245]
[1764602508630,0.002,2794.4,2794.0,10.73729418]
[1764602508802,0.002,2794.7,2794.3,7.95919434]
[1764602509002,0.002,2794.7,2794.4,0.6998]
[1764602509202,0.002,2794.7,2794.5,0.245]
[1764602509501,3.57694529,2795.7,2794.5,1.18039411]
[1764602509502,1.23639923,2795.5,2794.5,1.18039411]
[1764602509697,1.23639923,2795.8,2794.6,1.15895885]
[1764602509893,1.23639923,2795.9,2794.7,0.4548]
[1764602510422,1.58823894,2796.0,2794.7,0.4548]
[1764602510735,1.23639923,2795.6,2794.8,0.245]
[1764602511031,1.23639923,2795.6,2794.6,0.245]
[1764602511231,2.26085779,2795.6,2794.6,0.245]
[1764602511403,1.23639923,2795.7,2794.7,0.4548]
[1764602511604,1.40309923,2796.1,2794.7,8.41399434]
[1764602511839,1.40309923,2796.1,2794.8,0.86589943]
[1764602512027,0.35183971,2796.0,2794.8,0.4548]
[1764602512196,1.23639923,2795.9,2794.9,0.245]
[1764602512392,1.23639923,2795.3,2793.9,0.18437016]
[1764602512607,7.50721875,2795.1,2793.8,3.82435428]
[1764602512808,0.35183971,2794.9,2793.9,0.245]
[1764602513032,2.13526103,2795.0,2793.9,0.245]
[1764602513333,2.13526103,2795.0,2794.0,0.245]
[1764602513334,0.1707,2794.9,2794.0,0.245]
[1764602513695,1.23639923,2795.1,2794.1,0.4548]
[1764602513915,1.23639923,2795.3,2794.1,0.4548]
[1764602514104,0.92571095,2795.2,2794.2,0.245]
[1764602514314,0.92571095,2795.2,2794.3,0.245]
[1764602514491,3.57768952,2795.1,2794.3,3.57871381]
[1764602514829,0.74025107,2795.0,2794.3,3.57871381]
[1764602515124,1.54835276,2795.0,2794.3,7.15742762]
[1764602515300,0.18545988,2795.2,2794.3,7.15742762]
[1764602515301,0.74025107,2794.9,2794.3,7.15742762]
[1764602515623,4.50328934,2795.2,2794.3,7.15742762]
[1764602515841,0.74025107,2795.1,2794.3,7.15742762]
[1764602516024,4.31783266,2795.2,2794.3,3.57871381]
[1764602516224,4.31783266,2795.2,2794.2,3.57884166]
[1764602516225,1.17202584,2795.1,2794.4,0.245]
[1764602516532,1.63532584,2795.1,2794.3,7.15742762]
[1764602516735,1.02742358,2795.0,2794.3,3.57871381]
[1764602516937,2.26382281,2795.0,2794.2,0.245]
[1764602517236,0.74025107,2794.9,2794.2,0.245]
[1764602517409,0.75485265,2794.9,2794.2,0.245]
[1764602517732,0.58415265,2794.9,2794.2,0.245]
[1764602518038,0.52253971,2794.9,2793.9,3.57921589]
[1764602518214,0.35183971,2794.7,2793.1,0.1964]
[1764602518413,0.35183971,2794.5,2793.2,10.74036945]
[1764602518637,3.93035687,2794.5,2793.4,7.15973364]
[1764602518936,0.74025107,2794.4,2793.5,0.4548]
[1764602519104,0.74025107,2794.7,2793.5,0.4548]
[1764602519906,1.09209078,2794.7,2793.5,0.4548]
[1764602520106,0.82482569,2794.6,2793.5,0.4548]
[1764602520307,0.245,2794.5,2793.2,3.58010304]
[1764602520534,3.57858574,2794.4,2793.2,11.20194934]
[1764602520735,0.74025107,2794.3,2793.2,7.62182619]
[1764602521035,1.29176957,2794.3,2793.2,7.62182619]
[1764602521242,1.29176957,2794.3,2793.2,7.40522619]
[1764602521460,0.4552,2794.4,2793.3,0.4616]
[1764602521461,0.74025107,2794.4,2793.3,0.4616]
[1764602521760,0.74025107,2794.7,2793.3,0.4616]
[1764602522053,0.1707,2794.9,2793.4,0.245]
[1764602522352,0.74025107,2794.9,2793.5,0.97159411]
[1764602522510,0.74025107,2795.3,2793.6,17.89805265]
[1764602522712,0.74025107,2795.4,2794.0,0.72559411]
[1764602522938,0.74025107,2795.5,2794.1,0.245]
[1764602523239,0.002,2795.8,2794.9,7.95919434]
[1764602523443,0.002,2795.8,2795.0,0.98491943]
[1764602523658,0.002,2795.8,2794.0,0.189]
[1764602523659,3.57883531,2795.8,2794.6,0.189]
[1764602523862,1.79229078,2795.7,2794.0,0.189]
[1764602524023,1.79229078,2795.7,2794.0,0.8956]
[1764602524024,0.35183971,2795.5,2794.0,0.8956]
[1764602524229,0.35183971,2795.4,2794.0,0.6506]
[1764602524451,0.35183971,2795.4,2794.1,0.7066]
[1764602524651,0.09989793,2795.4,2794.2,14.56036752]
[1764602524878,0.74025107,2795.5,2794.3,1.50219675]
[1764602525034,0.0012,2795.8,2794.4,0.245]
[1764602525238,0.0012,2795.8,2794.6,7.95919434]
[1764602525448,0.0012,2795.8,2795.7,0.189]
[1764602525760,0.0012,2795.8,2795.7,0.434]
[1764602525956,0.0012,2795.8,2795.7,0.8956]
[1764602526628,0.002,2796.1,2795.7,0.8956]
[1764602526629,0.002,2796.1,2795.8,7.15358752]
[1764602526830,0.002,2796.1,2795.8,7.61518752]
[1764602527029,0.002,2796.1,2795.9,0.4616]
[1764602527528,0.002,2796.1,2796.0,0.7066]
[1764602527839,0.002,2796.1,2796.0,1.49261875]
[1764602528545,0.74025107,2797.4,2796.0,23.75796473]
[1764602528749,0.74025107,2797.4,2796.1,0.4616]
[1764602528936,0.74025107,2797.5,2796.1,1.18719411]
[1764602529123,0.74025107,2797.5,2796.5,7.95919434]
[1764602529330,0.74025107,2797.9,2796.6,0.245]
[1764602529634,1.19545107,2797.9,2796.2,0.4616]
[1764602529955,1.58823894,2797.7,2796.2,0.4616]
[1764602530255,1.19545107,2797.8,2795.8,3.57679376]
[1764602530256,1.23639923,2797.4,2795.8,3.57679376]
[1764602530425,2.59484991,2797.6,2795.8,3.57679376]
[1764602530426,1.23639923,2797.0,2795.8,7.61518752]
[1764602530626,1.23639923,2797.0,2795.9,0.245]
[1764602530627,0.30909981,2796.9,2795.9,0.245]
[1764602530827,1.56769059,2796.9,2795.9,0.245]
[1764602531028,0.74025107,2796.8,2795.9,0.245]
[1764602531493,0.74025107,2796.8,2796.0,0.4616]
[1764602531697,0.1665,2796.9,2796.0,0.4616]
[1764602531877,1.9766503,2796.8,2795.1,3.76658698]
[1764602532179,1.9766503,2796.8,2794.6,3.57827293]
[1764602532180,1.23639923,2796.2,2794.6,3.57832963]
[1764602532482,1.23639923,2795.7,2794.6,7.15665926]
[1764602532642,1.23639923,2795.7,2794.6,3.57832963]
[1764602532643,4.31730071,2795.6,2794.6,3.57832963]
[1764602532972,0.1667,2795.9,2794.7,0.7066]
[1764602533143,0.74357917,2796.0,2794.7,0.4616]
[1764602533340,1.23639923,2796.2,2794.6,7.15665926]
[1764602533341,0.74357917,2795.9,2794.6,7.15665926]
[1764602533586,0.74357917,2795.8,2794.6,7.15665926]
[1764602533791,1.23639923,2795.6,2794.7,0.245]
[1764602533945,0.74357917,2795.5,2794.7,1.51182593]
[1764602534149,0.74357917,2795.6,2794.8,0.245]
[1764602534391,0.7002,2796.5,2795.1,7.95919434]
[1764602534392,0.74357917,2795.7,2795.1,7.95919434]
[1764602534686,0.74493785,2796.2,2795.3,14.30973416]
[1764602534972,1.23639923,2796.5,2794.6,0.4616]
[1764602535157,1.23639923,2795.8,2794.7,7.61800318]
[1764602535359,0.74493785,2795.7,2794.8,0.245]
[1764602535558,0.74493785,2795.6,2794.9,0.245]
[1764602535773,0.74493785,2795.5,2794.8,0.4616]
[1764602536072,0.74493785,2795.4,2794.8,0.4616]
[1764602536286,0.74493785,2795.3,2794.9,0.245]
[1764602536467,0.74493785,2795.6,2794.8,1.22340032]
[1764602536651,1.40309923,2795.8,2794.5,0.189]
[1764602536652,0.74493785,2795.5,2795.0,7.15563506]
[1764602536856,0.74493785,2795.4,2795.1,0.6506]
[1764602537046,0.74493785,2795.3,2795.1,0.6506]
[1764602537246,0.74493785,2795.7,2795.2,0.4616]
[1764602537485,0.74493785,2795.9,2795.3,0.245]
[1764602537673,0.74493785,2796.2,2795.1,1.35190526]
[1764602537847,0.74493785,2796.1,2795.4,0.245]
[1764602538189,1.23639923,2795.7,2795.1,0.245]
[1764602538347,1.23639923,2795.7,2795.0,3.57781753]
[1764602538348,0.74493785,2795.6,2795.0,3.57781753]
[1764602538544,0.74493785,2795.5,2795.1,0.245]
[1764602538762,0.74493785,2795.4,2795.2,7.15512306]
[1764602538961,0.74493785,2795.3,2795.1,3.76664625]
[1764602539249,0.74493785,2795.2,2795.1,3.82268952]
[1764602539473,0.74493785,2795.6,2795.1,7.40037904]
[1764602539773,0.74493785,2795.5,2795.1,3.57768952]
[1764602539973,1.23639923,2795.7,2795.0,3.82277441]
[1764602539974,0.74493785,2795.4,2795.0,0.245]
[1764602540153,0.74493785,2795.3,2795.0,0.245]
[1764602540354,0.74493785,2795.2,2795.0,0.245]
[1764602540577,0.74493785,2795.1,2795.0,0.245]
[1764602540873,0.74493785,2795.1,2795.0,4.28441753]
[1764602541074,0.74493785,2795.1,2795.0,5.07065288]
[1764602541264,0.74493785,2795.4,2795.0,0.245]
[1764602541573,0.74493785,2795.3,2795.1,0.001]
[1764602541743,0.6219,2795.9,2795.1,0.001]
[1764602541744,0.74493785,2795.2,2795.1,0.001]
[1764602541950,0.74493785,2795.2,2795.1,0.8966]
[1764602542148,0.74493785,2795.5,2795.1,0.8966]
[1764602542477,0.74493785,2795.4,2795.1,0.435]
[1764602542773,0.74493785,2795.3,2795.2,4.03916153]
[1764602542979,0.74493785,2795.6,2795.2,11.99946862]
[1764602543176,0.74509091,2795.8,2795.3,0.4616]
[1764602543367,0.74509091,2796.0,2795.4,0.245]
[1764602543566,0.74509091,2795.9,2795.4,1.58220302]
[1764602543880,0.002,2796.1,2795.4,1.58220302]
[1764602543881,0.002,2796.1,2795.7,0.72559411]
[1764602544082,0.002,2796.4,2795.7,0.72559411]
[1764602544246,0.74551156,2797.0,2796.3,7.95919434]
[1764602544451,0.74551156,2797.0,2795.4,1.98770702]
[1764602544452,0.74551156,2796.6,2795.8,8.42079434]
[1764602544776,0.74551156,2796.5,2796.0,10.72961373]
[1764602544975,0.74551156,2796.6,2796.0,10.72961373]
[1764602545148,0.74551156,2796.6,2796.0,7.61467582]
[1764602545351,0.74551156,2796.5,2796.0,3.57653791]
[1764602545570,0.74551156,2796.4,2796.1,0.245]
[1764602545772,0.74551156,2796.3,2796.1,0.245]
[1764602546080,0.74551156,2796.5,2796.2,0.4616]
[1764602546278,0.74551156,2796.6,2796.3,0.245]
[1764602546479,0.74551156,2796.5,2795.7,3.57691495]
[1764602546650,0.74551156,2796.4,2796.0,0.245]
[1764602546850,0.74551156,2796.6,2796.0,3.57647688]
[1764602547052,0.74551156,2796.5,2795.2,3.57752001]
[1764602547250,0.74551156,2796.5,2794.8,0.4616]
[1764602547251,1.23639923,2795.8,2795.1,0.001]
[1764602547450,0.74551156,2795.7,2795.1,3.57866101]
[1764602547780,0.74551156,2795.6,2795.1,0.001]
[1764602547968,0.74551156,2795.5,2795.1,0.001]
[1764602548170,0.74471156,2795.4,2795.1,0.001]
[1764602548380,1.23639923,2795.7,2795.1,0.001]
[1764602548381,1.23639923,2795.6,2795.1,0.001]
[1764602548549,0.35183971,2795.4,2795.1,0.001]
[1764602548749,0.405504,2795.0,2794.9,0.001]
[1764602548986,1.48293782,2795.0,2794.9,0.001]
[1764602549289,1.53263382,2795.0,2794.9,0.001]
[1764602549458,2.65241788,2795.0,2794.9,0.001]
[1764602550154,0.72559411,2795.1,2794.9,0.001]
[1764602550349,2.32630106,2795.0,2794.9,0.001]
[1764602550657,0.35183971,2794.4,2793.5,3.58063234]
[1764602550857,0.35183971,2794.1,2793.5,0.001]
[1764602551085,1.95543987,2794.1,2793.5,0.001]
[1764602551455,1.24115695,2793.9,2793.5,0.001]
[1764602552077,1.24115695,2794.0,2793.5,0.001]
[1764602552280,1.59299666,2793.8,2793.5,0.001]
[1764602552481,1.59299666,2793.6,2793.5,0.001]
[1764602552752,3.57961053,2793.6,2793.5,0.001]
[1764602552981,5.11674435,2793.6,2793.5,0.001]
[1764602553185,0.405504,2793.5,2791.8,0.189]
[1764602553481,0.405504,2793.5,2792.1,0.1862]
[1764602553482,0.35183971,2793.0,2792.1,0.1862]
[1764602553696,1.48177757,2793.6,2792.2,0.245]
[1764602553855,0.245,2793.6,2792.3,0.245]
[1764602554056,1.23677757,2794.4,2792.6,0.72559411]
[1764602554351,0.59683971,2794.4,2792.7,0.86847885]
[1764602554556,0.59683971,2794.4,2792.8,0.245]
[1764602554557,4.39038159,2794.2,2792.8,0.245]
[1764602554755,4.03854188,2794.2,2792.9,10.74152313]
[1764602555066,0.89529411,2794.3,2792.9,14.32203084]
[1764602555264,1.40647757,2794.6,2793.0,2.00582308]
[1764602555586,0.52153971,2794.6,2793.0,2.00582308]
[1764602555789,7.67833031,2794.6,2793.1,0.9304]
[1764602555955,0.81380303,2794.5,2793.2,0.24370231]
[1764602556160,0.81380303,2794.5,2793.2,0.74290231]
[1764602556361,0.35183971,2794.5,2793.2,0.74290231]
[1764602556562,0.4597,2794.4,2793.1,0.1862]
[1764602556758,0.35159918,2794.1,2793.1,0.1862]
[1764602556957,0.35159918,2793.9,2793.2,3.58012315]
[1764602557182,0.39306972,2793.8,2793.2,3.58012315]
[1764602558175,0.85276972,2793.8,2792.3,0.4992]
[1764602558493,0.85276972,2793.8,2792.2,10.98921602]
[1764602558494,0.39306972,2793.8,2792.2,10.98921602]
[1764602558681,5.83959646,2794.2,2792.2,10.98921602]
[1764602558682,0.4597,2794.1,2792.4,0.4992]
[1764602558882,0.245,2794.0,2792.5,10.74306177]
[1764602559187,0.35120985,2793.6,2792.6,0.245]
[1764602559392,0.245,2793.5,2792.5,3.58102059]
[1764602559596,0.245,2793.5,2791.8,0.189]
[1764602559597,0.1705,2792.6,2791.8,0.189]
[1764602559763,0.1705,2792.6,2791.5,0.1862]
[1764602559962,0.1705,2792.6,2791.5,0.92133202]
[1764602560489,0.245,2792.7,2791.6,0.4992]
[1764602560884,0.1705,2792.9,2791.8,10.74575541]
[1764602561081,0.245,2793.1,2791.8,14.32767388]
[1764602561287,0.74084766,2793.4,2791.9,0.4992]
[1764602561489,4.11879473,2793.4,2792.9,0.001]
[1764602561706,0.74084766,2793.3,2792.9,0.001]
[1764602561878,1.44542064,2793.3,2792.9,0.001]
[1764602562079,0.4597,2793.2,2792.9,0.001]
[1764602562279,0.35120985,2793.1,2792.9,0.001]
[1764602562573,0.4597,2793.2,2792.9,0.001]
[1764602562977,3.58037952,2793.0,2792.9,0.001]
[1764602563306,3.93152144,2793.1,2792.9,0.001]
[1764602563481,0.35120985,2793.1,2792.9,0.001]
[1764602563677,0.245,2793.3,2792.9,0.001]
[1764602563678,3.82499498,2793.3,2792.9,0.001]
[1764602563881,0.245,2793.3,2792.9,0.001]
[1764602564102,0.40067133,2793.2,2792.9,0.001]
[1764602564309,4.17621804,2793.3,2792.9,0.001]
[1764602564604,3.82500819,2793.3,2792.9,0.001]
[1764602564808,4.63591804,2793.3,2792.9,0.001]
[1764602565502,0.35120985,2793.1,2792.9,0.001]
[1764602565713,1.09542262,2793.7,2793.0,0.4992]
[1764602565881,0.35120985,2793.6,2792.9,0.001]
[1764602566077,0.35120985,2793.5,2792.9,0.001]
[1764602566296,3.7499824,2793.7,2792.9,0.001]
[1764602566619,0.35120985,2793.6,2792.9,0.001]
[1764602566786,0.35120985,2793.4,2792.9,0.001]
[1764602566995,3.57999498,2793.3,2792.9,0.001]
[1764602567178,7.15998996,2793.3,2792.9,0.001]
[1764602567392,0.35120985,2793.0,2792.9,0.001]
[1764602567593,0.35120985,2793.2,2792.9,0.001]
[1764602567814,1.11317885,2793.2,2792.9,0.001]
[1764602568177,0.4597,2793.1,2792.9,0.001]
[1764602568382,4.51671385,2793.0,2792.9,0.001]
[1764602568596,4.51671385,2793.0,2791.5,0.1862]
[1764602568597,1.13109811,2792.9,2791.5,0.1862]
[1764602568920,0.35120985,2792.0,2791.4,7.16484381]
[1764602569128,0.244,2792.3,2791.4,7.16484381]
[1764602569331,0.244,2792.3,2790.8,0.4992]
[1764602569615,0.35120985,2791.9,2791.0,7.35995059]
[1764602570028,0.1667,2791.8,2791.0,3.77700541]
[1764602570209,0.35120985,2791.7,2790.9,3.58304457]
[1764602570514,0.35120985,2791.7,2790.8,7.6655544]
[1764602570719,0.35120985,2791.7,2790.5,0.4992]
[1764602570930,0.4107,2791.8,2790.4,0.244]
[1764602571079,0.4107,2791.8,2790.5,15.93310189]
[1764602571080,0.4099,2791.8,2790.5,15.93310189]
[1764602571280,0.8696,2791.8,2790.5,8.26672755]
[1764602571509,0.4099,2791.8,2790.6,0.4992]
[1764602571710,0.4597,2791.7,2790.5,3.58358717]
[1764602571876,0.80334431,2791.6,2790.5,11.24996151]
[1764602572076,0.80334431,2791.6,2790.5,3.58358717]
[1764602572276,0.4597,2791.5,2790.1,14.33640368]
[1764602572480,1.89445981,2791.6,2790.4,0.4992]
[1764602572804,0.81090985,2791.5,2790.4,0.4992]
[1764602573006,3.81787282,2791.4,2790.1,7.16820184]
[1764602573214,0.35120985,2791.2,2790.1,10.75230276]
[1764602573381,0.244,2791.3,2790.2,0.4992]
[1764602574001,0.98307159,2791.7,2790.2,0.4992]
[1764602574285,1.06426927,2791.6,2790.3,1.50796037]
[1764602574515,0.35120985,2791.5,2790.3,1.50796037]
[1764602574712,0.73907159,2791.6,2790.4,0.4992]
[1764602574903,0.244,2791.7,2790.4,0.4992]
[1764602575211,0.244,2791.7,2790.5,14.33434868]
[1764602575411,0.244,2791.7,2790.6,1.48335487]
[1764602575591,0.244,2791.7,2790.6,2.22655487]
[1764602575792,0.6256,2791.8,2790.7,0.4992]
[1764602576000,4.48821417,2791.8,2790.7,0.4992]
[1764602576316,0.1696,2790.8,2790.2,3.58397247]
[1764602576516,0.244,2790.7,2789.6,0.2329747]
[1764602576692,0.1705,2789.7,2789.6,0.2329747]
[1764602577228,0.34389793,2789.8,2789.6,0.2329747]
[1764602577229,0.74036101,2789.8,2789.6,4.31691803]
[1764602577434,0.92492262,2790.4,2789.6,4.31691803]
[1764602577598,0.21617002,2790.4,2789.6,7.90166136]
[1764602578122,1.6666973,2790.5,2789.6,11.48640469]
[1764602578325,0.92492262,2790.5,2789.7,0.4992]
[1764602578480,2.96952775,2791.3,2790.4,0.1862]
[1764602578481,1.6666973,2790.8,2790.4,0.1862]
[1764602578681,0.92492262,2791.1,2790.5,0.4992]
[1764602578887,0.92492262,2791.3,2790.5,0.4992]
[1764602579187,0.7421258,2791.4,2790.6,7.1669175]
[1764602579519,1.66704842,2791.5,2790.6,8.31051508]
[1764602579823,1.33733565,2791.4,2790.6,3.58345875]
[1764602580021,1.66704842,2791.3,2790.6,3.58345875]
[1764602580222,0.92492262,2791.0,2790.2,7.35004494]
[1764602580417,1.66704842,2790.9,2790.2,7.35004494]
[1764602580591,0.7421258,2790.8,2790.2,7.35004494]
[1764602580792,0.7421258,2790.8,2790.2,3.76607247]
[1764602581009,0.7421258,2790.8,2790.2,7.83284494]
[1764602581224,0.244,2790.7,2790.1,0.001]
[1764602581549,1.23677757,2790.3,2790.1,0.001]
[1764602581731,0.9861258,2790.2,2790.1,0.001]
[1764602581916,3.03971076,2790.2,2790.1,0.001]
[1764602582245,2.68850091,2790.2,2790.1,0.001]
[1764602582400,0.7421258,2790.2,2790.1,0.001]
[1764602582602,1.66981651,2790.2,2790.1,0.001]
[1764602583157,0.7421258,2790.2,2790.1,0.001]
[1764602583601,0.9861258,2790.3,2790.1,0.001]
[1764602583820,2.02476636,2790.8,2790.2,0.4828]
[1764602583821,0.7421258,2790.5,2790.2,0.4828]
[1764602584015,1.66961192,2791.0,2790.2,0.4828]
[1764602584217,0.92769071,2791.4,2790.2,0.4828]
[1764602584423,0.4645,2792.1,2790.1,0.1831]
[1764602584424,0.74280204,2791.5,2791.3,0.1321]
[1764602584652,0.92769071,2792.0,2791.3,0.6149]
[1764602584861,0.74301036,2791.9,2791.3,0.6149]
[1764602585158,0.74301036,2791.8,2791.4,10.74729525]
[1764602585320,0.92769071,2792.3,2791.4,15.94874653]
[1764602585520,0.1705,2793.0,2791.4,15.94874653]
[1764602585521,0.74364587,2792.4,2791.4,15.46594653]
[1764602585755,2.50982775,2793.4,2791.5,0.4828]
[1764602585756,1.67133658,2792.3,2791.5,0.4828]
[1764602585934,0.74364587,2792.2,2791.5,0.4828]
[1764602586146,0.74364587,2792.1,2791.5,0.4828]
[1764602586355,0.74364587,2792.0,2791.5,0.4828]
[1764602586556,0.74364587,2791.9,2791.5,0.4828]
[1764602586763,3.82488817,2792.7,2791.5,0.4828]
[1764602586764,0.74364587,2792.0,2791.5,1.61901953]
[1764602586920,0.74364587,2791.9,2791.5,1.61901953]
[1764602587124,0.74364587,2792.1,2791.7,7.16409356]
[1764602587509,0.74364587,2792.0,2791.3,0.1321]
[1764602587620,1.67133658,2791.9,2791.3,3.71466009]
[1764602587819,0.74364587,2791.8,2791.3,7.29722018]
[1764602588117,1.67133658,2791.7,2791.3,3.7146533]
[1764602588314,0.74364587,2791.6,2791.3,3.7146533]
[1764602588655,0.74364587,2791.5,2791.4,0.4828]
[1764602589149,0.74364587,2791.5,2791.1,7.16563362]
[1764602589448,0.74364587,2791.4,2791.1,7.64843362]
[1764602589656,0.74364587,2791.6,2791.1,7.16563362]
[1764602589834,0.74364587,2791.5,2791.1,11.23125043]
[1764602590030,0.74364587,2791.5,2790.2,4.06677247]
[1764602590031,0.92769071,2791.2,2790.2,4.06677247]
[1764602590257,0.92769071,2791.2,2790.2,1.51020704]
[1764602590258,0.74364587,2791.1,2790.2,1.51020704]
[1764602590439,0.74364587,2791.0,2790.3,0.4828]
[1764602590624,0.74364587,2790.9,2790.3,0.4828]
[1764602590823,0.74364587,2791.2,2790.3,0.4828]
[1764602591028,0.74364587,2791.1,2790.3,2.08576901]